bitfinex/quotes_SOLUSD_20241218
["timestamp","ask_amount","ask_price","bid_price","bid_amount"]
[1734516227180,8.97933798,216.99,216.92,8.97933798]
[1734516228313,3.44902849,217.05,216.94,8.97933798]
[1734516228616,8.97933798,217.08,217.0,8.97933798]
[1734516229201,0.5617089,217.1,217.02,8.97933798]
[1734516229202,8.97933798,217.09,217.02,8.97933798]
[1734516230115,8.97933798,217.08,217.0,8.97933798]
[1734516230992,8.97933798,217.07,217.0,8.97933798]
[1734516231423,8.97933798,217.06,216.95,6.0344]
[1734516231592,8.97933798,217.05,216.98,8.97933798]
[1734516231792,8.97933798,217.06,216.99,8.97933798]
[1734516231986,0.5617089,217.1,216.94,0.69118123]
[1734516231987,20.0,217.01,216.94,0.69118123]
[1734516232208,8.97933798,216.95,216.87,8.97933798]
[1734516232387,8.97933798,216.95,216.88,8.97933798]
[1734516232797,8.97933798,216.96,216.88,8.97933798]
[1734516233023,8.97933798,216.97,216.9,8.97933798]
[1734516233408,8.97933798,216.97,216.89,9.10482798]
[1734516233918,8.97933798,216.98,216.9,8.97933798]
[1734516234218,14.02033667,216.97,216.89,14.02033667]
[1734516234427,14.02033667,216.96,216.89,14.02033667]
[1734516236313,14.02033667,216.95,216.89,0.12549]
[1734516237425,14.02033667,216.96,216.89,14.02033667]
[1734516237594,14.02033667,216.97,216.9,0.12549]
[1734516237794,1.5139,217.02,216.93,14.02033667]
[1734516238012,6.3977,217.03,216.95,14.02033667]
[1734516238013,14.02033667,217.03,216.95,14.02033667]
[1734516238204,1.6559,217.07,216.95,14.02033667]
[1734516238405,1.6559,217.07,216.92,1.5635]
[1734516238406,14.02033667,217.03,216.96,14.02033667]
[1734516240125,14.02033667,217.02,216.95,0.12549]
[1734516240732,14.02033667,217.01,216.95,0.12549]
[1734516240934,14.02033667,216.98,216.92,1.5635]
[1734516241136,14.02033667,216.95,216.88,14.02033667]
[1734516241502,14.02033667,216.93,216.87,1.5136]
[1734516241732,14.02033667,216.92,216.85,14.02033667]
[1734516242028,1.6562,216.98,216.83,14.02033667]
[1734516242029,14.02033667,216.9,216.83,14.02033667]
[1734516242603,14.02033667,216.91,216.84,14.02033667]
[1734516242803,14.02033667,216.92,216.84,14.02033667]
[1734516244433,14.02033667,216.91,216.84,14.02033667]
[1734516244730,14.02033667,216.9,216.83,14.14582667]
[1734516245097,14.02033667,216.9,216.84,14.02033667]
[1734516245631,14.02033667,216.91,216.84,14.02033667]
[1734516246004,14.02033667,216.89,216.83,0.12549]
[1734516246432,14.02033667,216.87,216.8,14.02033667]
[1734516247127,14.02033667,216.87,216.81,0.12549]
[1734516248150,14.02033667,216.88,216.82,0.12549]
[1734516248616,29.3662,216.98,216.77,13.81341285]
[1734516248822,14.02033667,216.85,216.77,1.5893]
[1734516249130,14.02033667,216.84,216.77,1.5893]
[1734516249329,14.02033667,216.82,216.74,0.12549]
[1734516249546,14.02033667,216.82,216.76,0.12549]
[1734516249939,14.02033667,216.82,216.75,14.02033667]
[1734516250455,14.02033667,216.82,216.76,0.12549]
[1734516250621,14.02033667,216.81,216.73,14.02033667]
[1734516250822,20.0,216.87,216.75,14.02033667]
[1734516251121,20.0,216.83,216.77,14.02033667]
[1734516251837,14.02033667,216.85,216.77,14.02033667]
[1734516252033,14.02033667,216.84,216.77,14.02033667]
[1734516252846,7.9469,216.99,216.84,0.12549]
[1734516253028,14.02033667,216.96,216.88,14.02033667]
[1734516254822,14.02033667,216.94,216.88,14.02033667]
[1734516255018,14.02033667,216.93,216.85,14.02033667]
[1734516255250,14.02033667,216.92,216.84,14.02033667]
[1734516255741,14.02033667,216.91,216.84,14.02033667]
[1734516256052,14.02033667,216.91,216.83,14.02033667]
[1734516256238,14.02033667,216.9,216.82,14.02033667]
[1734516257134,14.02033667,216.9,216.83,14.02033667]
[1734516257349,14.02033667,216.89,216.81,14.02033667]
[1734516257569,81.486884,216.98,216.8,14.02033667]
[1734516257570,14.02033667,216.87,216.8,14.02033667]
[1734516258024,0.12549,216.97,216.79,1.6462]
[1734516258025,20.0,217.02,216.86,14.02033667]
[1734516258334,20.0,217.02,216.81,14.71212195]
[1734516258335,20.0,216.94,216.9,14.02033667]
[1734516258729,14.02033667,216.98,216.9,14.02033667]
[1734516258922,14.02033667,216.99,216.92,14.02033667]
[1734516259850,14.02033667,217.0,216.92,14.02033667]
[1734516260051,23.776884,217.0,216.93,14.02033667]
[1734516260848,14.02033667,216.99,216.92,14.02033667]
[1734516261241,14.02033667,216.99,216.91,14.02033667]
[1734516261953,14.02033667,216.99,216.92,14.02033667]
[1734516264242,14.02033667,216.98,216.91,14.02033667]
[1734516265537,14.02033667,216.98,216.9,14.02033667]
[1734516267436,14.02033667,216.95,216.87,14.02033667]
[1734516267636,14.02033667,216.93,216.86,14.02033667]
[1734516268037,14.02033667,216.94,216.87,14.02033667]
[1734516270390,14.02033667,216.92,216.85,14.02033667]
[1734516271087,14.02033667,216.93,216.86,14.02033667]
[1734516272547,37.79722067,216.92,216.85,14.02033667]
[1734516272751,14.02033667,216.88,216.82,14.02033667]
[1734516273692,14.02033667,216.87,216.8,14.02033667]
[1734516274750,14.02033667,216.86,216.79,15.66653667]
[1734516275574,14.02033667,216.83,216.76,14.02033667]
[1734516275783,14.02033667,216.92,216.76,14.02033667]
[1734516275784,14.02033667,216.82,216.76,14.02033667]
[1734516276382,14.02033667,216.83,216.76,14.02033667]
[1734516277769,14.02033667,216.85,216.78,14.02033667]
[1734516277992,14.02033667,216.84,216.77,14.02033667]
[1734516278301,14.02033667,216.85,216.78,14.02033667]
[1734516278486,14.02033667,216.86,216.79,14.02033667]
[1734516279196,14.02033667,216.84,216.74,0.81735699]
[1734516279496,45.86873503,216.92,216.74,14.02033667]
[1734516279497,14.02033667,216.81,216.74,14.02033667]
[1734516281376,14.02033667,216.82,216.75,14.02033667]
[1734516283467,15.61953667,216.86,216.78,14.02033667]
[1734516283699,23.776884,216.85,216.78,14.02033667]
[1734516283869,14.02033667,216.87,216.8,14.02033667]
[1734516284070,20.0,216.85,216.81,14.02033667]
[1734516284872,14.02033667,216.88,216.81,14.02033667]
[1734516285300,20.0,216.87,216.82,14.02033667]
[1734516286116,20.0,216.87,216.83,14.02033667]
[1734516286274,15.55373667,216.91,216.84,14.02033667]
[1734516288097,14.02033667,216.9,216.83,14.02033667]
[1734516288687,15.55373667,216.91,216.84,14.02033667]
[1734516288887,15.55373667,216.91,216.83,14.02033667]
[1734516290077,14.02033667,216.9,216.83,14.02033667]
[1734516294209,14.02033667,216.89,216.82,14.02033667]
[1734516295078,13.52033667,216.89,216.82,14.02033667]
[1734516295675,14.02033667,216.87,216.8,14.02033667]
[1734516296000,1.5334,216.91,216.79,14.02033667]
[1734516296001,14.02033667,216.86,216.79,14.02033667]
[1734516296307,14.02033667,216.85,216.78,14.02033667]
[1734516296905,14.02033667,216.85,216.75,0.12549]
[1734516296906,14.02033667,216.85,216.79,14.02033667]
[1734516297611,14.02033667,216.81,216.74,14.02033667]
[1734516297811,14.02033667,216.8,216.74,14.02033667]
[1734516300006,14.02033667,216.8,216.73,15.66643667]
[1734516300385,14.02033667,216.8,216.74,14.02033667]
[1734516300692,27.71,216.87,216.75,14.02033667]
[1734516300693,14.02033667,216.82,216.75,14.02033667]
[1734516301096,14.02033667,216.82,216.76,14.02033667]
[1734516301701,14.02033667,216.81,216.75,14.02033667]
[1734516302098,14.02033667,216.82,216.76,14.02033667]
[1734516302905,14.02033667,216.82,216.75,14.02033667]
[1734516303212,14.02033667,216.8,216.74,14.02033667]
[1734516304245,14.02033667,216.79,216.72,14.02033667]
[1734516305909,14.02033667,216.74,216.68,15.53883667]
[1734516306107,29.2879,216.83,216.7,14.02033667]
[1734516306108,14.02033667,216.76,216.7,14.02033667]
[1734516306498,14.02033667,216.75,216.69,14.02033667]
[1734516306693,14.02033667,216.75,216.68,15.53883667]
[1734516307912,14.02033667,216.75,216.69,14.02033667]
[1734516312029,8.99070584,216.75,216.69,8.99070584]
[1734516313000,28.99070584,216.76,216.69,8.99070584]
[1734516313201,20.0,216.76,216.7,8.99070584]
[1734516313414,20.0,216.76,216.71,8.99070584]
[1734516314601,20.0,216.79,216.72,8.99070584]
[1734516314796,8.99070584,216.79,216.72,8.99070584]
[1734516315195,8.99070584,216.78,216.71,9.11619584]
[1734516315531,8.99070584,216.79,216.72,8.99070584]
[1734516316041,8.99070584,216.78,216.72,8.99070584]
[1734516316441,8.99070584,216.79,216.72,8.99070584]
[1734516316819,8.99070584,216.78,216.72,8.99070584]
[1734516317847,8.99070584,216.79,216.72,8.99070584]
[1734516319032,8.99070584,216.79,216.73,8.99070584]
[1734516320148,20.0,216.82,216.74,8.99070584]
[1734516320446,8.99070584,216.81,216.75,8.99070584]
[1734516321326,8.99070584,216.8,216.72,0.12549]
[1734516321532,8.99070584,216.8,216.73,8.99070584]
[1734516321933,20.0,216.83,216.73,8.99070584]
[1734516322135,8.99070584,216.8,216.73,8.99070584]
[1734516323251,8.99070584,216.8,216.74,8.99070584]
[1734516323549,8.99070584,216.8,216.73,8.99070584]
[1734516324135,8.99070584,216.77,216.71,8.99070584]
[1734516324735,20.0,216.83,216.71,8.99070584]
[1734516324938,8.99070584,216.79,216.72,8.99070584]
[1734516325147,8.99070584,216.8,216.73,8.99070584]
[1734516325358,20.0,216.83,216.7,0.69199781]
[1734516325560,8.99070584,216.8,216.73,8.99070584]
[1734516328266,8.99070584,216.79,216.72,8.99070584]
[1734516329732,8.99070584,216.78,216.71,8.99070584]
[1734516330776,8.99070584,216.8,216.73,8.99070584]
[1734516330939,8.99070584,216.81,216.74,8.99070584]
[1734516333663,20.0,216.83,216.74,8.99070584]
[1734516333829,20.0,216.83,216.69,0.8174288]
[1734516333830,20.0,216.83,216.75,8.99070584]
[1734516334033,8.99070584,216.81,216.75,8.99070584]
[1734516335052,20.0,216.83,216.75,8.99070584]
[1734516335259,8.99070584,216.84,216.77,8.99070584]
[1734516335477,20.0,216.85,216.77,8.99070584]
[1734516335653,8.99070584,216.84,216.77,8.99070584]
[1734516335855,8.99070584,216.85,216.79,8.99070584]
[1734516338581,8.99070584,216.85,216.78,8.99070584]
[1734516340455,8.99070584,216.84,216.77,8.99070584]
[1734516340660,8.99070584,216.83,216.77,8.99070584]
[1734516341075,20.0,216.86,216.78,8.99070584]
[1734516341262,28.99070584,216.86,216.79,8.99070584]
[1734516341851,8.99070584,216.85,216.78,8.99070584]
[1734516342052,28.99070584,216.86,216.79,8.99070584]
[1734516342396,8.99070584,216.87,216.8,8.99070584]
[1734516342706,8.99070584,216.86,216.8,8.99070584]
[1734516344402,8.99070584,216.86,216.79,8.99070584]
[1734516344608,8.99070584,216.85,216.78,8.99070584]
[1734516345968,8.99070584,216.84,216.75,18.57739268]
[1734516346164,3.34030678,216.93,216.78,32.89307984]
[1734516346165,1.83090678,216.93,216.78,32.89307984]
[1734516346472,8.99070584,216.93,216.86,8.99070584]
[1734516346667,3.37983745,216.99,216.86,8.99070584]
[1734516346879,8.99070584,216.93,216.86,8.99070584]
[1734516347387,8.99070584,216.92,216.85,8.99070584]
[1734516348866,8.99070584,216.92,216.82,0.81708031]
[1734516348867,8.99070584,216.9,216.83,8.99070584]
[1734516349274,8.99070584,216.9,216.81,1.6382]
[1734516349487,1.5156,217.05,216.89,9.11619584]
[1734516349701,8.99070584,217.0,216.93,8.99070584]
[1734516349883,8.99070584,217.01,216.93,8.99070584]
[1734516350194,8.99070584,217.0,216.93,8.99070584]
[1734516352006,8.99070584,217.01,216.93,8.99070584]
[1734516352313,8.99070584,217.01,216.94,8.99070584]
[1734516355929,28.99070584,217.03,216.96,8.99070584]
[1734516356608,28.99070584,217.03,216.97,8.99070584]
[1734516356809,20.0,217.03,216.97,8.99070584]
[1734516357189,20.0,217.03,216.93,0.69124256]
[1734516357190,28.99070584,217.03,216.96,8.99070584]
[1734516357501,8.99070584,217.02,216.94,8.99070584]
[1734516357714,8.99070584,217.01,216.94,8.99070584]
[1734516357890,8.93521228,217.01,216.94,8.99070584]
[1734516358914,8.99070584,217.02,216.95,8.99070584]
[1734516360315,8.99070584,217.01,216.94,8.99070584]
[1734516361015,8.99070584,217.01,216.92,6.4972]
[1734516361195,8.99070584,216.99,216.92,8.99070584]
[1734516361400,8.99070584,216.98,216.91,8.99070584]
[1734516361715,8.99070584,216.95,216.88,1.6336]
[1734516362090,8.99070584,216.95,216.88,10.62430584]
[1734516362516,8.99070584,216.94,216.88,1.6336]
[1734516362818,8.99070584,216.91,216.85,8.99070584]
[1734516363610,1.5899,216.97,216.78,2.31942033]
[1734516363611,8.99070584,216.88,216.78,2.31942033]
[1734516363810,8.99070584,216.88,216.82,8.99070584]
[1734516364019,8.99070584,216.89,216.82,8.99070584]
[1734516364216,8.99070584,216.88,216.81,8.99070584]
[1734516365388,8.99070584,216.89,216.82,8.99070584]
[1734516366403,8.99070584,216.88,216.82,8.99070584]
[1734516367618,20.0,216.92,216.85,8.99070584]
[1734516367921,28.99070584,216.92,216.86,8.99070584]
[1734516368138,8.99070584,216.94,216.87,8.99070584]
[1734516368329,8.99070584,216.95,216.88,8.99070584]
[1734516369791,8.99070584,216.94,216.88,8.99070584]
[1734516370392,20.0,217.0,216.9,8.99070584]
[1734516370697,8.99070584,216.97,216.9,8.99070584]
[1734516371404,8.99070584,216.98,216.91,8.99070584]
[1734516371601,1.5943,217.02,216.93,8.99070584]
[1734516371793,8.99070584,217.01,216.94,8.99070584]
[1734516372020,8.99070584,217.0,216.94,8.99070584]
[1734516373332,8.99070584,217.0,216.93,8.99070584]
[1734516376928,1.5943,217.02,216.94,8.99070584]
[1734516377118,8.99070584,217.01,216.94,8.99070584]
[1734516377715,20.0,217.04,216.98,8.99070584]
[1734516378938,28.99070584,217.04,216.97,8.99070584]
[1734516379119,8.99070584,217.02,216.95,8.99070584]
[1734516380043,8.99070584,217.0,216.92,1.5753]
[1734516380252,8.99070584,216.99,216.92,10.56600584]
[1734516380449,8.99070584,217.0,216.93,8.99070584]
[1734516380949,8.99070584,216.98,216.92,1.5753]
[1734516381156,8.99070584,216.98,216.91,8.99070584]
[1734516381346,8.99070584,216.96,216.89,8.99070584]
[1734516382033,8.99070584,216.96,216.9,8.99070584]
[1734516384152,8.99070584,216.98,216.91,8.99070584]
[1734516384660,25.62361954,217.05,216.94,8.99070584]
[1734516384661,8.99070584,217.01,216.94,8.99070584]
[1734516385163,8.99070584,216.98,216.91,8.99070584]
[1734516386346,8.99070584,216.99,216.92,8.99070584]
[1734516386557,8.99070584,217.0,216.93,8.99070584]
[1734516386732,1.5285,217.08,216.96,8.99070584]
[1734516387053,8.99070584,217.04,216.97,8.99070584]
[1734516387654,8.99070584,217.05,216.98,8.99070584]
[1734516387950,8.99070584,217.08,217.01,8.99070584]
[1734516389152,0.5617089,217.1,217.01,8.99070584]
[1734516389353,0.5617089,217.1,217.04,8.99070584]
[1734516389847,8.99070584,217.06,216.99,8.99070584]
[1734516390421,8.99070584,217.06,217.04,150.0]
[1734516390827,8.99070584,217.05,217.04,150.0]
[1734516394843,32.76758984,217.05,217.04,150.0]
[1734516396067,0.5617089,217.1,217.04,150.0]
[1734516396270,8.99070584,217.05,217.04,150.0]
[1734516400267,8.99070584,217.06,217.04,150.0]
[1734516400757,8.99070584,217.05,217.04,150.0]
[1734516401547,0.5617089,217.1,217.04,150.0]
[1734516401762,9.55241474,217.1,217.04,150.0]
[1734516401970,0.5617089,217.1,217.04,158.99070584]
[1734516405567,0.5617089,217.1,217.05,8.99070584]
[1734516411984,9.55241474,217.1,217.04,160.54310584]
[1734516412291,9.55241474,217.1,217.04,151.5524]
[1734516412491,9.55241474,217.1,217.04,150.0]
[1734516412492,8.99070584,217.06,217.04,150.0]
[1734516412808,8.99070584,217.05,217.04,150.0]
[1734516421307,23.776884,217.05,217.04,150.0]
[1734516421521,32.76758984,217.05,217.04,150.0]
[1734516429322,68.7304132,217.05,217.04,150.0]
[1734516429528,96.5159032,217.05,217.04,150.0]
[1734516430517,60.55307984,217.05,217.04,150.0]
[1734516432641,20.0,216.95,216.84,1.6268]
[1734516432813,8.99070584,216.89,216.84,1.6268]
[1734516433321,8.99070584,216.9,216.84,1.6268]
[1734516433937,20.0,216.97,216.86,8.99070584]
[1734516434242,8.99070584,216.91,216.84,10.61750584]
[1734516434421,8.99070584,216.89,216.84,1.6268]
[1734516434941,8.99070584,216.88,216.84,1.6268]
[1734516435121,8.99070584,216.89,216.84,1.6268]
[1734516435754,8.99070584,216.9,216.84,10.61750584]
[1734516435945,8.99070584,216.91,216.84,10.61750584]
[1734516437138,8.99070584,216.9,216.84,1.6268]
[1734516437338,8.99070584,216.89,216.84,1.6268]
[1734516437542,8.99070584,216.88,216.84,1.6268]
[1734516437743,8.99070584,216.86,216.84,1.6268]
[1734516439439,8.99070584,216.86,216.82,6.6442]
[1734516442987,8.99070584,216.83,216.79,1.6307]
[1734516443141,8.99070584,216.81,216.79,1.6307]
[1734516443552,8.99070584,216.8,216.77,6.0596]
[1734516443792,8.99070584,216.79,216.77,6.0596]
[1734516444088,8.99070584,216.78,216.74,1.5713]
[1734516444258,8.99070584,216.75,216.71,6.0596]
[1734516444643,8.99070584,216.76,216.71,6.0596]
[1734516446388,8.99070584,216.77,216.71,15.05030584]
[1734516446783,8.99070584,216.76,216.68,1.5713]
[1734516446951,8.99070584,216.75,216.69,8.99070584]
[1734516449076,63.62282336,216.81,216.69,8.99070584]
[1734516449077,8.99070584,216.76,216.69,8.99070584]
[1734516449281,8.99070584,216.75,216.69,8.99070584]
[1734516450176,29.55168513,216.84,216.71,8.99070584]
[1734516450385,8.99070584,216.78,216.72,8.99070584]
[1734516450585,20.0,216.8,216.74,8.99070584]
[1734516450807,20.0,216.8,216.69,0.12549]
[1734516450808,28.99070584,216.8,216.73,8.99070584]
[1734516450971,8.99070584,216.76,216.68,1.5713]
[1734516451400,8.99070584,216.75,216.69,8.99070584]
[1734516451699,8.99070584,216.75,216.68,10.56200584]
[1734516453366,8.99070584,216.76,216.7,8.99070584]
[1734516456821,20.0,216.78,216.7,8.99070584]
[1734516457116,23.776884,216.79,216.7,8.99070584]
[1734516457117,8.99070584,216.76,216.7,8.99070584]
[1734516458504,33.6994,216.85,216.74,8.99070584]
[1734516458690,8.99070584,216.81,216.74,8.99070584]
[1734516460206,23.776884,216.8,216.74,8.99070584]
[1734516461209,32.76758984,216.8,216.7,0.6921333]
[1734516461414,8.99070584,216.78,216.71,8.99070584]
[1734516463227,20.0,216.82,216.75,8.99070584]
[1734516463422,28.99070584,216.82,216.76,8.99070584]
[1734516463728,8.99070584,216.82,216.76,8.99070584]
[1734516464229,2.20683065,216.91,216.82,0.12549]
[1734516464423,8.99070584,216.91,216.84,8.99070584]
[1734516466628,32.76758984,216.9,216.84,8.99070584]
[1734516466810,29.3148,216.97,216.82,8.99070584]
[1734516467009,8.99070584,216.88,216.82,8.99070584]
[1734516468224,8.99070584,216.88,216.81,8.99070584]
[1734516468412,8.99070584,216.89,216.82,8.99070584]
[1734516471440,8.99070584,216.88,216.81,8.99070584]
[1734516473352,8.99070584,216.87,216.78,0.69167542]
[1734516473521,8.99070584,216.83,216.77,28.99070584]
[1734516474331,8.99070584,216.84,216.78,8.99070584]
[1734516474533,20.0,216.88,216.8,8.99070584]
[1734516474835,8.99070584,216.87,216.8,8.99070584]
[1734516476412,8.99070584,216.87,216.78,0.69181573]
[1734516476413,8.99070584,216.87,216.81,8.99070584]
[1734516480465,8.99070584,216.87,216.8,8.99070584]
[1734516480763,8.99070584,216.86,216.79,8.99070584]
[1734516481125,8.99070584,216.86,216.81,75.0]
[1734516481935,20.0,216.89,216.81,75.0]
[1734516482220,8.99070584,216.86,216.81,75.0]
[1734516482435,8.99070584,216.87,216.81,83.99070584]
[1734516483421,23.776884,216.9,216.83,8.99070584]
[1734516483668,8.99070584,216.9,216.83,8.99070584]
[1734516486146,20.0,216.93,216.86,8.99070584]
[1734516486353,28.99070584,216.93,216.86,8.99070584]
[1734516486939,8.99070584,216.9,216.83,10.59180584]
[1734516487255,20.0,216.93,216.83,10.59180584]
[1734516487428,8.99070584,216.9,216.83,10.59180584]
[1734516488151,20.0,216.93,216.81,75.0]
[1734516488152,8.99070584,216.87,216.81,83.99070584]
[1734516488856,23.776884,216.92,216.81,83.99070584]
[1734516489066,8.99070584,216.87,216.81,83.99070584]
[1734516491021,20.0,216.93,216.81,83.99070584]
[1734516491022,8.99070584,216.88,216.81,83.99070584]
[1734516491927,8.99070584,216.86,216.81,75.0]
[1734516492128,8.99070584,216.85,216.81,75.0]
[1734516495031,8.99070584,216.84,216.81,75.0]
[1734516495232,8.99070584,216.83,216.81,75.0]
[1734516495551,8.99070584,216.82,216.81,75.0]
[1734516497271,32.76758984,216.82,216.81,75.0]
[1734516498871,32.10376283,216.82,216.81,75.0]
[1734516500539,68.06658619,216.82,216.81,75.0]
[1734516500735,95.85207619,216.82,216.81,75.0]
[1734516504850,97.6752776,216.82,216.81,75.0]
[1734516514876,25.60008541,216.82,216.81,75.0]
[1734516515167,8.99070584,216.82,216.81,75.0]
[1734516516549,32.76758984,216.82,216.81,75.0]
[1734516523550,68.7304132,216.82,216.81,75.0]
[1734516524167,32.76758984,216.82,216.81,75.0]
[1734516525958,20.0,216.85,216.81,75.0]
[1734516526584,8.99070584,216.82,216.81,75.0]
[1734516527377,32.76758984,216.82,216.81,75.0]
[1734516532284,23.776884,216.82,216.81,75.0]
[1734516532486,32.76758984,216.82,216.81,75.0]
[1734516532860,68.7304132,216.82,216.81,72.2484127]
[1734516538291,96.3904132,216.82,216.81,72.2484127]
[1734516539484,96.5159032,216.82,216.81,72.2484127]
[1734516540286,96.3904132,216.82,216.81,72.2484127]
[1734516540487,60.42758984,216.82,216.81,72.2484127]
[1734516546994,32.76758984,216.82,216.81,72.2484127]
[1734516548095,1.8613185,216.87,216.81,72.2484127]
[1734516548302,8.99070584,216.84,216.81,72.2484127]
[1734516548503,8.99070584,216.85,216.81,72.2484127]
[1734516548718,8.99070584,216.86,216.81,72.2484127]
[1734516549597,8.99070584,216.85,216.81,72.2484127]
[1734516553899,43.776884,216.89,216.82,1.666]
[1734516554099,8.99070584,216.89,216.83,8.99070584]
[1734516554502,8.99070584,216.88,216.82,10.65670584]
[1734516557523,23.776884,216.94,216.85,15.52670584]
[1734516557711,23.776884,216.91,216.85,15.52670584]
[1734516558311,81.7,217.0,216.9,8.99070584]
[1734516558510,8.99070584,216.98,216.91,8.99070584]
[1734516561410,43.776884,216.99,216.93,8.99070584]
[1734516561608,82.54392358,217.05,216.95,8.99070584]
[1734516561831,8.99070584,217.03,216.96,8.99070584]
[1734516562703,8.99070584,217.04,216.97,8.99070584]
[1734516564201,8.99070584,217.02,216.95,0.12549]
[1734516564434,8.99070584,217.02,216.95,9.11619584]
[1734516565111,8.99070584,217.02,216.95,0.12549]
[1734516565428,8.99070584,217.02,216.95,9.11619584]
[1734516566032,8.99070584,217.03,216.96,8.99070584]
[1734516567326,8.99070584,217.01,216.94,11.29152474]
[1734516567525,8.99070584,217.0,216.94,1.6096]
[1734516567726,8.99070584,216.98,216.94,1.6096]
[1734516568534,8.99070584,216.99,216.94,1.6096]
[1734516569131,23.776884,216.98,216.94,1.6096]
[1734516569336,28.99070584,216.99,216.94,1.6096]
[1734516569635,8.99070584,216.98,216.94,1.6096]
[1734516570414,28.99070584,216.99,216.94,1.6096]
[1734516571751,20.0,216.99,216.94,1.6096]
[1734516571916,28.99070584,216.99,216.94,1.6096]
[1734516572442,8.99070584,216.98,216.94,1.6096]
[1734516572614,8.99070584,216.97,216.94,1.6096]
[1734516573444,8.99070584,216.98,216.94,1.6096]
[1734516574239,20.0,216.99,216.94,1.6096]
[1734516574442,28.99070584,216.99,216.94,1.6096]
[1734516575718,32.76758984,217.02,216.95,8.99070584]
[1734516577016,8.99070584,217.02,216.95,8.99070584]
[1734516577217,8.99070584,217.04,216.97,8.99070584]
[1734516578340,21.89649033,217.09,216.97,8.99070584]
[1734516578545,8.99070584,217.05,216.98,8.99070584]
[1734516578746,21.89649033,217.09,216.96,0.69120492]
[1734516578747,8.99070584,217.04,216.97,9.11619584]
[1734516580444,8.99070584,217.03,216.96,8.99070584]
[1734516580646,8.99070584,217.02,216.95,8.99070584]
[1734516582946,8.99070584,217.03,216.96,8.99070584]
[1734516584343,27.66,217.08,216.94,1.6096]
[1734516584344,8.99070584,216.99,216.94,1.6096]
[1734516585324,8.99070584,216.95,216.88,1.5019]
[1734516585628,8.99070584,216.93,216.88,1.5019]
[1734516587639,20.0,216.98,216.88,1.5019]
[1734516587823,8.99070584,216.94,216.88,1.5019]
[1734516589045,8.99070584,216.93,216.88,1.5019]
[1734516592032,8.99070584,216.94,216.88,10.49260584]
[1734516593247,8.99070584,216.93,216.88,1.5019]
[1734516594052,23.776884,216.96,216.88,1.5019]
[1734516594263,8.99070584,216.93,216.88,1.5019]
[1734516598065,8.99070584,216.95,216.88,10.49260584]
[1734516598879,20.0,216.99,216.88,10.49260584]
[1734516599040,8.99070584,216.95,216.88,10.49260584]
[1734516600659,8.99070584,217.02,216.94,8.99070584]
[1734516600885,8.99070584,217.02,216.96,8.99070584]
[1734516601048,8.99070584,217.01,216.94,8.99070584]
[1734516602578,8.99070584,216.99,216.92,8.99070584]
[1734516602737,8.99070584,216.97,216.9,8.99070584]
[1734516603784,8.99070584,216.97,216.91,8.99070584]
[1734516604458,8.99070584,216.96,216.88,2.19327834]
[1734516604648,8.99070584,216.95,216.89,8.99070584]
[1734516606449,30.0,217.06,216.88,2.19327834]
[1734516606450,10.492606,217.09,216.95,0.12549]
[1734516606753,10.492606,217.09,217.02,8.99070584]
[1734516606951,8.99070584,217.09,217.02,8.99070584]
[1734516607156,8.99070584,217.08,217.01,8.99070584]
[1734516607674,0.5617089,217.1,216.95,0.81656407]
[1734516607675,8.99070584,217.06,216.95,0.81656407]
[1734516607879,8.99070584,217.05,216.98,8.99070584]
[1734516608381,8.99070584,217.07,217.0,8.99070584]
[1734516608599,23.776884,217.05,217.0,8.99070584]
[1734516608965,23.776884,217.06,217.0,8.99070584]
[1734516611202,20.0,217.05,217.02,8.99070584]
[1734516611762,23.776884,217.08,217.02,8.99070584]
[1734516611963,0.5617089,217.1,217.03,8.99070584]
[1734516612187,0.5617089,217.1,217.06,8.99070584]
[1734516612401,0.5617089,217.1,217.07,8.99070584]
[1734516612571,0.5617089,217.1,217.06,8.99070584]
[1734516612778,0.5617089,217.1,217.05,8.99070584]
[1734516614567,20.5617089,217.1,217.06,8.99070584]
[1734516616102,20.5617089,217.1,217.05,8.99070584]
[1734516616483,20.5014853,217.1,217.06,8.99070584]
[1734516618413,0.5014853,217.1,217.07,8.99070584]
[1734516618711,0.5014853,217.1,217.08,8.99070584]
[1734516619009,0.5014853,217.1,217.09,8.99070584]
[1734516630619,0.5014853,217.1,217.09,9.11619584]
[1734516630790,0.5014853,217.1,217.09,9.80683899]
[1734516632015,0.5014853,217.1,217.09,0.81613315]
[1734516632532,0.5014853,217.1,217.09,9.80683899]
[1734516634250,28.99070584,217.22,217.1,0.12549]
[1734516634251,20.0,217.22,217.1,0.12549]
[1734516634526,8.99070584,217.25,217.19,8.99070584]
[1734516634694,1.5377,217.26,217.18,8.99070584]